Cogmind - Beta 12 @@@ ROGUE MODE // 2023.05.08 @ 15:10:05 Player: gamerman Result: Destroyed by D-53 Grenadier with Mini Grenade Launcher Performance ------------- Evolutions (1) 500 Regions Visited (3) 600 Robots Destroyed (21) 105 Value Destroyed (401) 401 Prototype IDs (2) 40 Alien Tech Used (0) 0 Bonus (0) 0 TOTAL SCORE: 1646 Bonus ------- None Cogmind --------- Core Integrity 0/400 Matter 129/300 Energy 265/265 System Corruption 0% Temperature Cool (0) Movement Core (350) Ox6 Location -9/Mines Parts ------- > --- POWER (1) -------- Improved Ion Engine > --- PROPULSION (2) --- (None) > --- UTILITY (4) ------ Heat Sink Heat Sink Medium Storage Unit > --- WEAPON (2) ------- (None) > --- INVENTORY (10) --- Ion Engine Improved Ion Engine Light Treads Particle Cannon Heavy Particle Cannon Heavy Particle Cannon Heavy Particle Cannon Heavy Particle Cannon Minigun Minigun Peak State ------------ > --- POWER ------------ Improved Ion Engine > --- PROPULSION ------- Light Treads Light Treads > --- UTILITY ---------- Heat Sink Heat Sink Medium Storage Unit Light Armor Plating > --- WEAPON ----------- Minigun Minigun > --- INVENTORY -------- Ion Engine Improved Ion Engine Particle Cannon Heavy Particle Cannon Heavy Particle Cannon Heavy Particle Cannon Heavy Particle Cannon Heavy Assault Rifle Minigun Minigun [Rating: 16] Favorites ----------- Power Ion Engine Engine Ion Engine Propulsion Light Treads Treads Light Treads Utility Heat Sink Device Heat Sink Storage Medium Storage Unit Protection Light Armor Plating Weapon Assault Rifle Energy Gun EM Pulse Gun Energy Cannon Particle Cannon Ballistic Gun Assault Rifle Ballistic Cannon Light Cannon Build | -11 -10 -9 -9 ------- Run | Jun Mat Mat Min Slots Evolved 2 | . . 2 . Power . | . . . . Propulsion . | . . . . Utility 2 | . . 2 . Weapon . | . . . . Parts Attached 24 | 6 4 14 . Power 3 | 1 . 2 . Engine 3 | 1 . 2 . Core . | . . . . Reactor . | . . . . Propulsion 3 | 2 . 1 . Treads 3 | 2 . 1 . Leg . | . . . . Wheel . | . . . . Hover . | . . . . Flight . | . . . . Utility 9 | 1 3 5 . Device 2 | . 1 1 . Storage 6 | 1 1 4 . Processor . | . . . . Hackware . | . . . . Protection 1 | . 1 . . Artifact . | . . . . Weapon 9 | 2 1 6 . Energy Gun 2 | 1 1 . . Energy Cannon 1 | . . 1 . Ballistic Gun 5 | 1 . 4 . Ballistic Cannon 1 | . . 1 . Launcher . | . . . . Special Weapon . | . . . . Impact Weapon . | . . . . Slashing Weapon . | . . . . Piercing Weapon . | . . . . Special Melee Weapon . | . . . . Unidentified Prototypes . | . . . . Parts Lost 7 | . 1 1 5 Power 1 | . . 1 . Propulsion 2 | . . . 2 Utility 1 | . . . 1 Weapon 3 | . 1 . 2 Highest Loss Streak 5 | . 1 1 5 To Critical Strikes . | . . . . Average Slot Usage (%) 91 | . 95 88 86 Engine 12 | . 14 10 11 Treads 25 | . 28 22 16 Device 13 | . 10 15 22 Storage 8 | . 5 11 11 Protection 9 | . 8 11 7 Energy Gun 7 | . 12 . . Energy Cannon 1 | . . 4 . Ballistic Gun 13 | . 14 13 18 Naked Turns . | . . . . Heaviest Build 99 | 14 20 99 28 Greatest Support 40 | 40 40 40 40 Greatest Overweight (x) 6 | 2 . 2 6 Average Overweight (x) . | . . . . Largest Inventory Capacity 25 | 8 10 25 10 Average Capacity 8 | 6 6 11 10 Most Carried 15 | 1 5 15 10 Average Carried 4 | . 3 7 10 Final Capacity 10 | 8 5 10 10 Final Carried 10 | 1 5 10 10 Class Distribution -------------------- 100% | Mutant Dominant Class ---------------- Mutant | -10/Materials Mutant | -9/Materials Mutant | -9/Mines Resources | -11 -10 -9 -9 ----------- Run | Jun Mat Mat Min Matter Collected 532 | 148 186 175 23 Remotely . | . . . . Salvage Created 716 | . 428 247 41 Parts 49 | . 34 15 . Haulers Intercepted . | . . . . Recyclers Shooed . | . . . . Parts Field Recycled . | . . . . Retrieved Matter . | . . . . Parts Self-Destructed . | . . . . Prevented . | . . . . Kills | -11 -10 -9 -9 ------- Run | Jun Mat Mat Min Combat Hostiles Destroyed 15 | . 7 5 3 Guns 14 | . 7 4 3 Cannons 1 | . . 1 . Classes Destroyed 8 | . 6 1 1 Builder 1 | . 1 . . Recycler 2 | . 1 1 . Operator 1 | . 1 . . Watcher 5 | . 3 2 . Swarmer 6 | . 3 3 . Grunt 5 | . 4 1 . Sentry 1 | . . 1 . Assembled 3 | . . . 3 Best Kill Streak 5 | . 5 3 3 Combat Bots Only 3 | . 2 3 3 Max Kills in Single Turn 2 | . 2 2 1 Gunslinging . | . . . . Exploded . | . . . . Melee . | . . . . Uniques/NPCs Destroyed . | . . . . Combat | -11 -10 -9 -9 -------- Run | Jun Mat Mat Min Damage Taken 1616 | . 352 305 959 Core 509 | . 88 47 374 Absorbed by Shields . | . . . . Core Remaining (%) 82 | 100 64 . . Volleys Fired 69 | . 38 23 8 Largest 2 | . 2 2 2 Hottest 91 | . 60 91 50 Shots Fired 125 | . 71 38 16 Gun 115 | . 71 28 16 Cannon 10 | . . 10 . Launcher . | . . . . Special . | . . . . Kinetic 90 | . 38 36 16 Thermal 2 | . . 2 . Explosive . | . . . . Electromagnetic 33 | . 33 . . Robot Hit Streak 10 | . 10 7 5 Robot Miss Streak 6 | . 6 3 4 Penetration Max . | . . . . Secondary Targets 1 | . . . 1 Max Gunslinging Chain 1 | . . . 1 Shots Hit Robots 68 | . 35 23 10 Core Hits 34 | . 18 10 6 Critical Kills . | . . . . Critical Parts Destroyed . | . . . . Critical Strikes 1 | . . 1 . Blast 1 | . . 1 . Melee Attacks . | . . . . Impact . | . . . . Slashing . | . . . . Piercing . | . . . . Sneak Attacks . | . . . . Combat Hostiles . | . . . . Follow-up Attacks . | . . . . Damage Inflicted 1003 | . 470 363 170 Guns 892 | . 470 252 170 Cannons 111 | . . 111 . Explosions . | . . . . Melee . | . . . . Ramming . | . . . . Kinetic 733 | . 220 343 170 Thermal 20 | . . 20 . Explosive . | . . . . Electromagnetic 250 | . 250 . . Impact . | . . . . Slashing . | . . . . Piercing . | . . . . Highest Corruption . | . . . . Average Corruption . | . . . . Corruption Purged . | . . . . Corruption Blocked . | . . . . Overload Shots . | . . . . Overflow Damage . | . . . . Projectiles . | . . . . Explosions . | . . . . Melee . | . . . . Knockbacks . | . . . . Impact . | . . . . Kinetic . | . . . . Secondary . | . . . . Self-Inflicted Damage . | . . . . Shots . | . . . . Rammed . | . . . . Targets Rammed . | . . . . Kicked . | . . . . Crushed . | . . . . Highest Temperature 18 | . 18 3 6 Average Temperature 8 | . 11 2 6 Received Heat Transfer 402 | . 108 114 180 Siege Activations . | . . . . Robots Corrupted . | . . . . Combat Hostiles . | . . . . Parts Fried . | . . . . Impact Corruptions . | . . . . Robots Melted . | . . . . Combat Hostiles . | . . . . Parts Melted . | . . . . Heat Transferred 37 | . . 37 . Parts Sabotaged . | . . . . Parts Stolen . | . . . . Parts Stripped . | . . . . Power Chain Reactions . | . . . . Missiles Intercepted . | . . . . Alert | -11 -10 -9 -9 ------- Run | Jun Mat Mat Min Peak Influence 249 | . 169 249 39 Initial 70 | . . 70 24 Average 80 | . 66 118 26 Maximum Alert Level 1 | . . 1 . Low Security (%) 88 | 100 100 70 100 Level 1 11 | . . 29 . Level 2 . | . . . . Level 3 . | . . . . Level 4 . | . . . . Level 5 . | . . . . High Security . | . . . . Max Security . | . . . . Squads Dispatched 2 | . 1 1 . Investigation . | . . . . Extermination . | . . . . Reinforcement 2 | . 1 1 . Assault . | . . . . Garrison . | . . . . Intercept . | . . . . Searches Triggered . | . . . . Construction Impeded . | . . . . Haulers Reinforced . | . . . . Active Scanning Responses . | . . . . Cargo Convoy Interrupts . | . . . . Stealth | -11 -10 -9 -9 --------- Run | Jun Mat Mat Min Distress Signals 1 | . 1 . . Communications Jammed . | . . . . Distress Signals . | . . . . Times Spotted 37 | . 16 10 11 Peak Tracking Total 9 | . 5 3 9 Tactical Retreats 1 | . 1 . . Traps | -11 -10 -9 -9 ------- Run | Jun Mat Mat Min Traps Triggered 1 | . 1 . . Indirectly . | . . . . Trap Hack Attempts . | . . . . Triggered . | . . . . Disarmed . | . . . . Reprogrammed . | . . . . Reused . | . . . . Traps Extracted . | . . . . Installed . | . . . . Triggered . | . . . . Machines | -11 -10 -9 -9 ---------- Run | Jun Mat Mat Min Machines Disabled . | . . . . Max in Single Turn . | . . . . Machines Repaired . | . . . . Machines Sabotaged . | . . . . Overloaded Fab Kills . | . . . . Hacking | -11 -10 -9 -9 --------- Run | Jun Mat Mat Min Machines Accessed 9 | . 6 3 . Terminals 9 | . 6 3 . Fabricators . | . . . . Repair Stations . | . . . . Recycling Units . | . . . . Scanalyzers . | . . . . Garrison Access . | . . . . Total Hacks 27 | . 19 8 . Successful 10 | . 8 2 . Failed 17 | . 11 6 . Catastrophic 5 | . 3 2 . Database Lockouts . | . . . . Manual 21 | . 15 6 . Terminals 27 | . 19 8 . Fabricators . | . . . . Repair Stations . | . . . . Recycling Units . | . . . . Scanalyzers . | . . . . Garrison Access . | . . . . Terminal Hacks 6 | . 5 1 . Record 1 | . . 1 . Robot Analysis 1 | . 1 . . Prototype ID Bank 2 | . 2 . . Branch Access Points 1 | . 1 . . Hauler Manifests 1 | . 1 . . Fabricator Hacks . | . . . . Repair Station Hacks . | . . . . Recycling Unit Hacks . | . . . . Scanalyzer . | . . . . Garrison Access Hacks . | . . . . Unauthorized Hacks 4 | . 3 1 . Terminals 4 | . 3 1 . Botnet 4 | . 3 1 . Fabricators . | . . . . Repair Stations . | . . . . Recycling Units . | . . . . Scanalyzers . | . . . . Garrison Access . | . . . . Data Cores Recovered . | . . . . Used . | . . . . Hacking Detections 8 | . 5 3 . Full Trace Events . | . . . . Feedback Events . | . . . . Feedback Blocked . | . . . . Robot Schematics Acquired . | . . . . Robots Built . | . . . . Authchips . | . . . . Time . | . . . . Total Robot Build Rating . | . . . . Part Schematics Acquired . | . . . . Parts Built . | . . . . Authchips . | . . . . Time . | . . . . Total Part Build Rating . | . . . . Parts Repaired . | . . . . Time . | . . . . Parts Recycled . | . . . . Recycled Matter . | . . . . Retrieved Matter . | . . . . Retrieved Components . | . . . . Parts Scanalyzed . | . . . . Part Schematics Acquired . | . . . . Parts Damaged . | . . . . Bothacking | -11 -10 -9 -9 ------------ Run | Jun Mat Mat Min Used RIF Installer . | . . . . Robots Hacked . | . . . . Non-combat . | . . . . Combat . | . . . . Robot Hacks Applied . | . . . . Relay Couplers Released . | . . . . Fabnet Peak Effective % . | . . . . Robots Rewired . | . . . . Allies Hacked . | . . . . Hacks Repelled . | . . . . Allies | -11 -10 -9 -9 -------- Run | Jun Mat Mat Min Total Allies . | . . . . Largest Group . | . . . . Highest-Rated Group . | . . . . Highest-Rated Ally . | . . . . Total Orders . | . . . . Ally Attacks . | . . . . Total Damage . | . . . . Kills . | . . . . Allies Corrupted . | . . . . Allies Melted . | . . . . Intel | -11 -10 -9 -9 ------- Run | Jun Mat Mat Min Robot Analysis Total 1 | . 1 . . Derelict Logs Recovered . | . . . . Drone Launches . | . . . . Drone Recoveries . | . . . . Exploration | -11 -10 -9 -9 ------------- Run | Jun Mat Mat Min Turns Passed 1425 | 87 726 547 65 Spaces Moved 721 | 61 376 261 23 Core 25 | 22 . . 3 Treads 696 | 39 376 261 20 Legs . | . . . . Wheels . | . . . . Hover . | . . . . Flight . | . . . . Fastest Speed 50 | 50 160 160 160 Average Speed 161 | 128 160 168 195 Slowest Speed 350 | 160 160 320 350 Overloaded Moves . | . . . . Propulsion Burnouts . | . . . . Robots Hopped . | . . . . Cave-ins Triggered . | . . . . Exploration Rate (%) 28 | 4 66 26 16 Regions Visited 3 Branch Regions 1 Pre-discovered Areas . | . . . . Known Exits Taken . | . . . . Unknown Exits Taken 3 | 1 1 1 . Scrap Searched . | . . . . Spaces Dug . | . . . . Terrain Destroyed . | . . . . Melee . | . . . . Projectile . | . . . . AOE . | . . . . Terrain Rammed . | . . . . Walls Destroyed . | . . . . Machines Disabled . | . . . . Actions | -11 -10 -9 -9 --------- Run | Jun Mat Mat Min Total 857 | 67 429 330 31 Wait 18 | . 6 12 . Move 718 | 60 375 260 23 Hop . | . . . . Pick Up 18 | 1 4 13 . Fast Attach 13 | 6 4 3 . Attach 4 | . . 4 . Detach 2 | . . 2 . Swap 7 | . . 7 . Drop 8 | . 2 6 . Fire 69 | . 38 23 8 Melee . | . . . . Ram . | . . . . Kick . | . . . . Crush . | . . . . Escape Stasis . | . . . . Rewire . | . . . . Trap . | . . . . Miscellaneous . | . . . . Route ------- -11/Junkyard -10/Materials (discovered 3 exits: *Mat x2 / Min) -9/Materials (discovered 2 exits: [*Min x2]) -9/Mines History --------- Turn | Location | Event 32 | -11/Junkyard | Discovered new exit (range 14) 88 | -11/Junkyard | Entered Materials 316 | -10/Materials | Build established: Mutant 369 | -10/Materials | Discovered new exit (range 16) 553 | -10/Materials | Discovered new exit (range 15) 593 | -10/Materials | Identified exit to Mines 814 | -10/Materials | Entered another Materials area 814 | -9/Materials | Evolved 2 slots: Utility x2 946 | -9/Materials | Discovered new exit (range 5) 1183 | -9/Materials | Discovered new exit (range 13) 1361 | -9/Materials | Entered Mines 1362 | -9/Mines | Assembled infested the area 1417 | -9/Mines | Core integrity fell below 50% 1421 | -9/Mines | Core integrity fell below 20% 1426 | -9/Mines | Destroyed by D-53 Grenadier with Mini Grenade Launcher Last Messages --------------- 01400_ Switching to secondary target: D-53 Grenadier. 01401_ Acquired 12 matter. 01402_ Lgt. Armor Plating destroyed. 01403_ as-00523 destroyed. 01403_ as-73236 destroyed. 01403_ as-15111 destroyed. 01405_ as-43406 destroyed. 01405_ as-51761 destroyed. 01405_ Lgt. Treads destroyed. 01407_ T-07 Excavator is excavating. 01413_ Minigun destroyed. 01415_ D-53 Grenadier destroyed. 01415_ T-07 Excavator is excavating. 01416_ The unstable cave ceiling collapses. 01416_ Lgt. Treads destroyed. 01419_ The unstable cave ceiling collapses. 01420_ T-07 Excavator is excavating. 01423_ U-05 Engineer lays Concrete. 01424_ The unstable cave ceiling collapses. 01424_ T-07 Excavator is excavating. Map ----- +----------------------------------------------------+ | ????????????????????????????????? ???????????? | | ????????????????????????????????? ???????????? | | ????????????????????????????????? ???????????? | | ????????????????????????????????##< ???????????? | | ????????????????????????????????# ???????????? | | ????????????????????????????????# ??????###??? | | ????????????????????????????????# #?????# ##?? | | ????????????????????????????????# #???## #?? | | ????????????????????????????????# #??## #?? | | ????????????????????????????????# #?## #?? | | ?????????????????????????????#### ### """ #?? | | ?????????????????????????????? """ #?? | | ???????????????????????????###?## """ #?? | | ???????????????????????????# ?# #?? | | ???????????????????????????# #?# #?? | | ???????????????????????????# ### ## #?? | | ???????????????????????????# # # ## #??? | | ??????????????????????????## a% ## ##??? | | ????????????????????????### # ##???? | | ???????????????????????## ## #????? | | ??????????????????????## ### ##????? | | ?????????????????????## # ######?????? | | ?????????????????????# d #??????? | | ????????????????????## t #??????? | | ?????????????????#### #???????? | | ?????????? u% @ ## #???????? | | ?????????? ##??????????? | | ?????????????##### ##???????????? | | ?????????????????# # ##????????????? | | ?????????????????## ###?????????????? | | ??????????????????##############???????????????? | | ???????????????????????????????????????????????? | | | | | | | | | | | | | | | | | | | | | | | | | | | | | | | | | | | | | +----------------------------------------------------+ Best States ------------- Heat Dissipation 48 Energy Generation 12 Energy Capacity 265 Matter Stores 263 Matter Capacity 300 Sight Range 16 Terrain Scan Density 10 Armor Coverage 150 Evasion (%) 50 Recoil Reduction 2 Item Schematics ----------------- None Robot Schematics ------------------ None Fabricated ------------ Nothing Alien Tech Used ----------------- None Achievements -------------- None Challenges ------------ None Game ------ Seed DecoderDataMinigun Manual? 0 Play Time 00:18:45 Cumulative 23.1 hours Start 2023.05.08 @ 14:51:00 End 2023.05.08 @ 15:10:05 Sessions 1 Manual Loads 0 Difficulty Rogue Special Mode None Game No. 25 Rogue 25 Adventurer 0 Explorer 0 Win Type - Total 1 Types 1/0/0/0/0/0/0/0/0 Lore% 36 Gallery% 31 Achievement% 35 Wizard Run 0 Options --------- ASCII 1 Keyboard 0 Movement Vi Keybinds 0 Fullscreen 1 Font 18/Cog Map View 76x50 Tactical HUD 1 Map Filters NONE Filters NONE Steam 1 RUN: d0c57b57-3ce6-4f92-b0d6-e8e32cf14ae7